Cogmind - Beta 15 @@@ ROGUE MODE // 2025.08.19 @ 22:17:54 Player: luka.null Result: Destroyed by G-47 Trooper with Particle Gun Performance ------------- Evolutions (0) 0 Regions Visited (1) 200 Robots Destroyed (3) 15 Value Destroyed (115) 115 Prototype IDs (0) 0 Alien Tech Used (0) 0 Bonus (0) 0 TOTAL SCORE: 330 Bonus ------- None Cogmind --------- Core Integrity 0/250 Matter 300/300 Energy 100/100 System Corruption 0% Temperature Cool (9) Movement Core (1400) Ox27 Location -10/Materials Parts ------- > --- POWER (1) -------- (None) > --- PROPULSION (2) --- (None) > --- UTILITY (2) ------ Huge Storage Unit Core Shielding > --- WEAPON (2) ------- Small Laser Small Laser > --- INVENTORY (25) --- Light Ion Engine Mining Laser Mining Laser Peak State ------------ > --- POWER ------------ Ion Engine > --- PROPULSION ------- Light Treads Light Treads > --- UTILITY ---------- Small Storage Unit Core Shielding > --- WEAPON ----------- Small Laser Small Laser > --- INVENTORY -------- Light Ion Engine Mining Laser Mining Laser [Rating: 7] Favorites ----------- Power Ion Engine Engine Ion Engine Propulsion Light Treads Treads Light Treads Utility Small Storage Unit Storage Small Storage Unit Protection Core Shielding Weapon Small Laser Energy Gun Small Laser Build | -11 -10 ------- Run | Yrd Mat Slots Evolved . | . . Power . | . . Propulsion . | . . Utility . | . . Weapon . | . . Parts Attached 9 | 6 3 Power 1 | 1 . Engine 1 | 1 . Core . | . . Reactor . | . . Propulsion 2 | 2 . Treads 2 | 2 . Leg . | . . Wheel . | . . Hover . | . . Flight . | . . Utility 3 | 1 2 Device . | . . Storage 2 | 1 1 Processor . | . . Hackware . | . . Protection 1 | . 1 Artifact . | . . Weapon 3 | 2 1 Energy Gun 3 | 2 1 Energy Cannon . | . . Ballistic Gun . | . . Ballistic Cannon . | . . Launcher . | . . Special Weapon . | . . Impact Weapon . | . . Slashing Weapon . | . . Piercing Weapon . | . . Special Melee Weapon . | . . Unidentified Prototypes . | . . Parts Lost 4 | . 4 Power 1 | . 1 Propulsion 2 | . 2 Utility . | . . Weapon 1 | . 1 Highest Loss Streak 2 | . 2 To Critical Strikes . | . . Average Backups 1 | 1 3 Power . | . 1 Propulsion . | . . Utility . | . . Weapon . | . 2 Tool/Special . | . . Unused Backups 3 | . 3 Power 1 | . 1 Propulsion . | . . Utility . | . . Weapon 2 | . 2 Tool/Special . | . . Average Slot Usage (%) 80 | . 80 Engine 13 | . 13 Treads 18 | . 18 Storage 14 | . 14 Protection 13 | . 13 Energy Gun 20 | . 20 Peak Build Rating 7 | 6 7 Average Rating 5 | 5 5 On Entrance 3 | . 6 Naked Turns . | . . Heaviest Build 88 | 12 88 Greatest Support 40 | 40 40 Greatest Overweight (x) 29 | . 29 Average Overweight (x) . | . 3 Largest Inventory Capacity 25 | 8 25 Average Capacity 9 | 7 21 Most Carried 4 | 3 4 Average Carried 1 | 1 3 Final Capacity 25 | 8 25 Final Carried 3 | 3 3 Class Distribution -------------------- 100% | Mutant Dominant Class ---------------- Mutant | -10/Materials Resources | -11 -10 ----------- Run | Yrd Mat Matter Collected 275 | 260 15 Remotely . | . . Salvage Created 142 | 33 109 Parts 7 | . 7 Haulers Intercepted . | . . Recyclers Shooed 1 | . 1 Parts Field Recycled . | . . Retrieved Matter . | . . Parts Self-Destructed . | . . Prevented . | . . Kills | -11 -10 ------- Run | Yrd Mat Combat Hostiles Destroyed 7 | 4 3 Guns 7 | 4 3 Classes Destroyed 2 | 1 1 Grunt 3 | . 3 Assembled 4 | 4 . Best Kill Streak 2 | 2 2 Combat Bots Only 2 | 2 2 Max Kills in Single Turn 1 | 1 1 Gunslinging . | . . Exploded . | . . Melee . | . . Uniques/NPCs Destroyed . | . . Combat | -11 -10 -------- Run | Yrd Mat Hostile Shots Fired 88 | 37 51 Missed 27 | 6 21 Hits 61 | 31 30 Projectile 61 | 31 30 Critical Strikes 1 | . 1 Actively Blocked 1 | . 1 Damage Taken 824 | 405 419 Core 254 | 129 125 Absorbed by Shields . | . . Redirected to Shielding 27 | . 27 Core Remaining (%) 48 | 48 . Volleys Fired 36 | 15 21 Largest 2 | 2 1 Hottest 80 | 80 40 Shots Fired 51 | 30 21 Gun 51 | 30 21 Cannon . | . . Launcher . | . . Special . | . . Kinetic . | . . Thermal 51 | 30 21 Explosive . | . . Electromagnetic . | . . Robot Hit Streak 8 | 2 8 Robot Miss Streak 2 | 2 2 Penetration Max . | . . Secondary Targets . | . . Shots Hit Robots 29 | 13 16 Core Hits 14 | 7 7 Critical Kills . | . . Critical Parts Destroyed . | . . Critical Strikes . | . . Melee Attacks . | . . Impact . | . . Slashing . | . . Piercing . | . . Sneak Attacks . | . . Combat Hostiles . | . . Follow-up Attacks . | . . Damage Inflicted 336 | 146 190 Guns 336 | 146 190 Cannons . | . . Explosions . | . . Melee . | . . Ramming . | . . Kinetic . | . . Thermal 336 | 146 190 Explosive . | . . Electromagnetic . | . . Impact . | . . Slashing . | . . Piercing . | . . Highest Corruption . | . . Average Corruption . | . . Corruption Purged . | . . Corruption Blocked . | . . Overload Shots . | . . Overflow Damage . | . . Projectiles . | . . Explosions . | . . Melee . | . . Knockbacks . | . . Impact . | . . Kinetic . | . . Secondary . | . . Self-Inflicted Damage . | . . Shots . | . . Rammed . | . . Targets Rammed . | . . Kicked . | . . Crushed . | . . Highest Temperature 108 | 108 66 Average Temperature 36 | 38 34 Received Heat Transfer 210 | . 210 Siege Activations . | . . Martial Activations . | . . Shielding Activations . | . . Robots Disrupted . | . . Combat Hostiles . | . . Robots Corrupted . | . . Combat Hostiles . | . . Parts Fried . | . . Impact Corruptions . | . . Robots Melted . | . . Combat Hostiles . | . . Parts Melted 2 | . 2 Heat Transferred 750 | 325 425 Parts Sabotaged . | . . Parts Stolen . | . . Parts Stripped . | . . Power Chain Reactions . | . . Alert | -11 -10 ------- Run | Yrd Mat Maximum Alert Level . | . . Low Security (%) 100 | 100 100 Level 1 . | . . Level 2 . | . . Level 3 . | . . Level 4 . | . . Level 5 . | . . High Security . | . . Max Security . | . . Peak Influence 36 | . 36 Initial . | . . Average . | . 3 Influence Increases 80 | . 80 Destroy 0b10 Robot/C 60 | . 60 Destroy Leader 20 | . 20 Influence Decreases 80 | . 80 Time Decay 60 | . 60 Lost Part 20 | . 20 Squads Dispatched 1 | . 1 Investigation . | . . Extermination . | . . Reinforcement 1 | . 1 Assault . | . . Garrison . | . . Intercept . | . . Searches Triggered . | . . Construction Impeded . | . . Haulers Reinforced . | . . Active Scanning Responses . | . . Cargo Convoy Interrupts . | . . Stealth | -11 -10 --------- Run | Yrd Mat Distress Signals . | . . Communications Jammed . | . . Distress Signals . | . . Times Spotted 13 | 5 8 Peak Tracking Total 2 | 2 2 Tactical Retreats 1 | 1 . Traps | -11 -10 ------- Run | Yrd Mat Traps Triggered 1 | . 1 Indirectly . | . . Trap Hack Attempts . | . . Triggered . | . . Disarmed . | . . Reprogrammed . | . . Reused . | . . Traps Extracted . | . . Installed . | . . Triggered . | . . Machines | -11 -10 ---------- Run | Yrd Mat Machines Disabled . | . . Max in Single Turn . | . . Machines Repaired . | . . Machines Dismantled . | . . Machines Sabotaged . | . . Overloaded Fab Kills . | . . Hacking | -11 -10 --------- Run | Yrd Mat Machines Accessed 1 | . 1 Terminals 1 | . 1 Fabricators . | . . Repair Stations . | . . Recycling Units . | . . Scanalyzers . | . . Garrison Access . | . . Total Hacks 1 | . 1 Successful 1 | . 1 Failed . | . . Catastrophic . | . . Database Lockouts . | . . Manual . | . . Terminals 1 | . 1 Fabricators . | . . Repair Stations . | . . Recycling Units . | . . Scanalyzers . | . . Garrison Access . | . . Terminal Hacks 1 | . 1 Zone Layout 1 | . 1 Fabricator Hacks . | . . Repair Station Hacks . | . . Recycling Unit Hacks . | . . Scanalyzer . | . . Garrison Access Hacks . | . . Unauthorized Hacks . | . . Terminals . | . . Fabricators . | . . Repair Stations . | . . Recycling Units . | . . Scanalyzers . | . . Garrison Access . | . . Data Cores Recovered . | . . Used . | . . Hacking Detections 1 | . 1 Full Trace Events . | . . Feedback Events . | . . Feedback Blocked . | . . Robot Schematics Acquired . | . . Robots Built . | . . Authchips . | . . Time . | . . Total Robot Build Rating . | . . Part Schematics Acquired . | . . Parts Built . | . . Authchips . | . . Time . | . . Total Part Build Rating . | . . Parts Repaired . | . . Time . | . . Parts Recycled . | . . Recycled Matter . | . . Retrieved Matter . | . . Retrieved Components . | . . Parts Scanalyzed . | . . Part Schematics Acquired . | . . Parts Damaged . | . . Bothacking | -11 -10 ------------ Run | Yrd Mat Used RIF Installer . | . . Robots Hacked . | . . Non-combat . | . . Combat . | . . Robot Hacks Applied . | . . Relay Couplers Released . | . . Fabnet Peak Effective % . | . . Robots Rewired . | . . Allies Hacked . | . . Hacks Repelled . | . . Allies | -11 -10 -------- Run | Yrd Mat Total Allies . | . . Largest Group . | . . Highest-Rated Group . | . . Highest-Rated Ally . | . . Total Orders . | . . Ally Attacks . | . . Total Damage . | . . Kills . | . . Allies Corrupted . | . . Allies Melted . | . . Intel | -11 -10 ------- Run | Yrd Mat Active Infowar (turns) . | . . Robot Analysis Total . | . . Derelict Logs Recovered . | . . Drone Launches . | . . Drone Recoveries . | . . Exploration | -11 -10 ------------- Run | Yrd Mat Turns Passed 6259 | 5368 891 Spaces Moved 2062 | 1810 252 Core 22 | 4 18 Treads 2040 | 1806 234 Legs . | . . Wheels . | . . Hover . | . . Flight . | . . Fastest Speed 50 | 50 160 Average Speed 181 | 159 335 Slowest Speed 1500 | 160 1500 Overloaded Moves . | . . Propulsion Burnouts . | . . Robots Hopped . | . . Potential Cave-ins . | . . Cave-ins Triggered . | . . Exploration Rate (%) 79 | 119 39 Regions Visited 1 Branch Regions . Pre-discovered Areas . | . . Known Exits Taken . | . . Unknown Exits Taken 1 | 1 . Scrap Searched . | . . Spaces Dug . | . . Terrain Destroyed . | . . Melee . | . . Projectile . | . . AOE . | . . Terrain Rammed . | . . Walls Destroyed . | . . Machines Disabled . | . . Actions | -11 -10 --------- Run | Yrd Mat Total 4532 | 4254 278 Wait 2421 | 2420 1 Move 2061 | 1809 252 Hop . | . . Pick Up 4 | 4 . Fast Attach 7 | 5 2 Attach 1 | 1 . Detach . | . . Swap 1 | . 1 Drop 1 | . 1 Fire 36 | 15 21 Melee . | . . Ram . | . . Kick . | . . Crush . | . . Escape Stasis . | . . Rewire . | . . Trap . | . . Miscellaneous . | . . Route ------- -11/Scrapyard -10/Materials (discovered 2 exits: [*Mat] / [*Min]) History --------- Turn | Location | Event 12 | -11/Scrapyard | Discovered new exit (range 16) 4867 | -11/Scrapyard | Assembled infested the area 5087 | -11/Scrapyard | Core integrity fell below 50% 5369 | -11/Scrapyard | Entered Materials 5370 | -10/Materials | Build established: Mutant 5411 | -10/Materials | Discovered new exit (range 7) 5774 | -10/Materials | Discovered new exit (range 15) 6251 | -10/Materials | Core integrity fell below 20% 6260 | -10/Materials | Destroyed by G-47 Trooper with Particle Gun Last Messages --------------- 05797_ K-01 Serf cleans the Nuclear Reactor. 05921_ ALERT: Hostiles spotted, dispatching reinforcements to Terminal M003. 05939_ Particle Gun melted. 05939_ Imp. Heat Sink melted. 05939_ G-47 Trooper destroyed. 05953_ Lgt. Treads destroyed. 05957_ G-34 Mercenary destroyed. 05983_ Lgt. Treads destroyed. 05997_ R-06 Scavenger collects Aluminum Leg. 06001_ R-06 Scavenger collects Sml. Laser. 06004_ G-34 Mercenary destroyed. 06005_ R-06 Scavenger collects Heat Sink. 06008_ R-06 Scavenger collects Lgt. Nuclear Core. 06021_ Acquired Sml. Laser. 06030_ K-01 Serf collects debris. 06073_ R-06 Scavenger collects Heat Sink. 06079_ R-06 Scavenger collects Aluminum Leg. 06172_ Acquired 15 matter. 06254_ Ion Engine destroyed. Map ----- +----------------------------------------------------+ | ####???????????????????????????????? | | #??????????????????????????????????? | | #??????????????????????????????????? | | #??????????????????????????????????? | | """ #??????????????????????????????????? | | """"" #??????????????????????????????????? | | """"" #??????????????????????????????????? | | """"" ##?????????????????????????????????? | | """ ????????????????????????????????? | | ????????????????????????????????? | | ????????????????????????????????? | | ????????????????????????????????? | | ????????????????????????????????? | | # ######## ###?????????????? ??????????????????? | | # # # # ??????????????? ??????????????????? | | # # + + ??????????????? ??????????????????? | | # # """ # # ??????????????? ??????????????????? | | # # """ + # ?????????????? #??????????????????? | | # # """ ## ## ?????????????? #??????????????????? | | # # """ ## ## ?????????????? #??????????????????? | | # # """ ## ## ?????????????? #??????????????????? | | # # ## ###?????????????? #??????????????????? | | # ######### #?????????????### ###????????????????? | | ######### ############### #????????????????? | | % # ""?????????????? | | g %@ " + ""?????????????? | | g t % # ""?????????????? | | ######################### !#????????????????? | | ##???????????????????????## ####????????????????? | | #?????????????????????????#+#???????????????????? | | #?????????????????????????? ???????????????????? | | #??????????????????????????? #??????????????????? | | #??????????????????????????? #??????????????????? | | #??????????????????????????? #??????????????????? | | #????????????????????????????#??????????????????? | | #???????????????????????????????????????????????? | | #???????????????????????????????????????????????? | | #???????????????????????????????????????????????? | | #???????????????????????????????????????????????? | | #???????????????????????????????????????????????? | | #???????????????????????????????????????????????? | | #???????????????????????????????????????????????? | | #???????????????????????????????????????????????? | | #???????????????????????????????????????????????? | | #???????????????????????????????????????????????? | | #???????????????????????????????????????????????? | | #???????????????????????????????????????????????? | | #???????????????????????????????????????????????? | | ##???????????????????????????????????????????????? | | ?????????????????????????????????????????????????? | +----------------------------------------------------+ Best States ------------- Heat Dissipation 25 Energy Generation 10 Energy Capacity 250 Matter Stores 300 Matter Capacity 300 Sight Range 16 Terrain Scan Density 10 Core Shielding 20 Evasion (%) 40 Recoil Reduction 2 Item Schematics ----------------- None Robot Schematics ------------------ None Fabricated ------------ Nothing Repaired ---------- Nothing Alien Tech Used ----------------- None Achievements -------------- Curiosity Killed The Cat Challenges ------------ None Game ------ Seed MatterFieldDriveblaster Manual? 0 Play Time 00:15:10 Cumulative 9.0 hours Start 2025.08.19 @ 22:04:49 End 2025.08.19 @ 22:17:54 Sessions 1 Manual Loads 0 Difficulty Rogue Special Mode None Game No. 5 Rogue 2 Adventurer 3 Explorer 0 Win Type - Total 0 Types 0/0/0/0/0/0/0/0/0/0 Lore% 9 Gallery% 8 Achievement% 11 Wizard Run 0 Options --------- Layout 1 ASCII 0 Keyboard 0 Movement Vi Keybinds 0 Fullscreen 0 Font 20/Terminus Map View 64x48 Zoom Use 0% Tactical HUD 1 Map Filters NONE Filters NONE Steam 1 RUN: 81bec4ff-d69f-4457-ba4b-e02d5c43827f